lending/lending_fUSD_20240219
["ID","MTS","AMOUNT","RATE_DAILY","PERIOD"]
[314433136,1708341040738,-179.037426,0.00038356,14]
[314433137,1708341040747,-7850.39445,0.00038356,14]
[314433138,1708341040757,-7850.39445,0.00038356,14]
[314433139,1708341040767,-10887.22330869,0.00038375,11]
[314433140,1708341040776,-184.81,0.00038389,2]
[314433141,1708341040785,-4490.37128229,0.00038409,2]
[314433142,1708341040794,-5104.82775028,0.00038409,2]
[314433143,1708341040803,-230.12,0.00038427,2]
[314433144,1708341040812,-1316.2659484,0.00038434,2]
[314433145,1708341040822,-935.99606424,0.00038434,2]
[314433146,1708341040830,-296.57927112,0.00038434,2]
[314433147,1708341040840,-10073.0362739,0.00038434,2]
[314433148,1708341040849,-2022.82255756,0.00038434,2]
[314433149,1708341040858,-2160.74225495,0.00038436,8]
[314433150,1708341040867,-10887.22330869,0.00038493,12]
[314433151,1708341040877,-2068.24,0.000385,3]
[314433152,1708341040885,-176.06,0.0003851,2]
[314433153,1708341040894,-151.58355636,0.00038523,2]
[314433154,1708341040903,-512.2661492,0.00038523,2]
[314433155,1708341040912,-373.3604994,0.00038524,5]
[314433156,1708341040920,-791.93733546,0.00038544,13]
[314433157,1708341040930,-3348.77393517,0.00038548,13]
[314433158,1708341040938,-164.827154,0.00038551,7]
[314433159,1708341040947,-152.460061,0.00038551,7]
[314433160,1708341040956,-152.46006,0.00038551,7]
[314433161,1708341040965,-517.06,0.000386,3]
[314433162,1708341040974,-152.0,0.00038604,7]
[314433163,1708341040983,-10887.22330869,0.00038612,12]
[314433164,1708341040992,-230.12,0.00038618,2]
[314433165,1708341041001,-180.0,0.00038638,2]
[314433166,1708341041010,-159.78946,0.00038706,2]
[314433167,1708341041019,-250.484529,0.00038706,2]
[314433168,1708341041028,-10887.22330869,0.00038731,12]
[314433169,1708341041037,-152.0,0.00038741,7]
[314433170,1708341041049,-2160.74225495,0.00038762,9]
[314433171,1708341041081,-152.06641792,0.00038792,12]
[314433172,1708341041090,-1166.999999,0.00038798,2]
[314433173,1708341041099,-1958384.82231488,0.00038798,2]
[314433174,1708341041109,-392.0511967,0.00038799,2]
[314433175,1708341041118,-283.46875159,0.00038799,2]
[314433176,1708341041128,-392.0511967,0.00038799,2]
[314433177,1708341041137,-283.46875159,0.00038799,2]
[314433178,1708341041146,-2113854.36343468,0.000388,3]
[314433179,1708341041156,-151.0,0.000388,14]
[314433180,1708341041165,-151.0,0.000388,14]
[314433181,1708341041174,-155.0,0.000388,14]
[314433182,1708341041183,-785.550318,0.000388,14]
[314433183,1708341041193,-327.621723,0.000388,14]
[314433184,1708341041207,-864.539963,0.000388,14]
[314433185,1708341041216,-327.621723,0.000388,14]
[314433186,1708341041225,-785.550318,0.000388,14]
[314433187,1708341041235,-864.539963,0.000388,14]
[314433188,1708341041244,-596.131857,0.000388,14]
[314433189,1708341041254,-596.131857,0.000388,14]
[314433190,1708341041263,-153.107936,0.000388,14]
[314433191,1708341041272,-153.107936,0.000388,14]
[314433192,1708341041283,-151.0,0.000388,14]
[314433193,1708341041292,-151.0,0.000388,14]
[314433194,1708341041301,-2245.560263,0.000388,14]
[314433195,1708341041310,-151.0,0.000388,14]
[314433196,1708341041319,-326.061946,0.000388,14]
[314433197,1708341041330,-2245.560263,0.000388,14]
[314433198,1708341041339,-151.0,0.000388,14]
[314433199,1708341041348,-326.061946,0.000388,14]
[314433200,1708341041358,-151.0,0.000388,14]
[314433201,1708341041367,-151.0,0.000388,14]
[314433202,1708341041376,-244.388329,0.000388,14]
[314433203,1708341041385,-244.388329,0.000388,14]
[314433204,1708341041395,-151.0,0.000388,7]
[314433205,1708341041404,-151.0,0.000388,14]
[314433206,1708341041414,-151.0,0.000388,7]
[314433207,1708341041425,-151.0,0.000388,14]
[314433208,1708341041434,-151.0,0.000388,14]
[314433209,1708341041443,-151.0,0.000388,14]
[314433210,1708341041453,-151.0,0.000388,14]
[314433211,1708341041462,-151.0,0.000388,14]
[314433212,1708341041470,-162.598902,0.000388,14]
[314433214,1708341041480,-162.598902,0.000388,14]
[314433215,1708341041491,-1048.267509,0.000388,14]
[314433216,1708341041500,-151.0,0.000388,14]
[314433217,1708341041509,-1048.267509,0.000388,14]
[314433218,1708341041519,-151.0,0.000388,14]
[314433219,1708341041528,-152.401369,0.000388,14]
[314433220,1708341041537,-151.0,0.000388,7]
[314433221,1708341041546,-400.683307,0.000388,2]
[314433222,1708341041555,-400.683307,0.000388,2]
[314433223,1708341041565,-418.344515,0.000388,14]
[314433224,1708341041575,-418.344515,0.000388,14]
[314433225,1708341041584,-151.0,0.000388,14]
[314433226,1708341041593,-151.0,0.000388,14]
[314433227,1708341041601,-151.0,0.000388,14]
[314433228,1708341041610,-151.0,0.000388,3]
[314433229,1708341041620,-151.0,0.000388,3]
[314433230,1708341041629,-151.0,0.000388,14]
[314433231,1708341041638,-151.0,0.000388,14]
[314433232,1708341041648,-166.208607,0.000388,14]
[314433233,1708341041657,-166.208607,0.000388,14]
[314433234,1708341041667,-1942.605783,0.000388,14]
[314433235,1708341041676,-1942.605783,0.000388,14]
[314433236,1708341041685,-151.0,0.000388,14]
[314433237,1708341041694,-233.221752,0.000388,14]
[314433238,1708341041704,-233.221752,0.000388,14]
[314433239,1708341041715,-151.0,0.000388,14]
[314433240,1708341041725,-188.216899,0.000388,14]
[314433241,1708341041734,-188.216899,0.000388,14]
[314433242,1708341041743,-180.708682,0.000388,14]
[314433243,1708341041752,-180.708682,0.000388,14]
[314433244,1708341041761,-155.708372,0.000388,14]
[314433245,1708341041770,-155.708372,0.000388,14]
[314433246,1708341041779,-151.0,0.000388,14]
[314433247,1708341041789,-151.0,0.000388,14]
[314433248,1708341041798,-151.0,0.000388,14]
[314433249,1708341041807,-159.337444,0.000388,14]
[314433250,1708341041816,-159.337444,0.000388,14]
[314433251,1708341041827,-151.0,0.000388,14]
[314433252,1708341041836,-261.017657,0.000388,14]
[314433253,1708341041845,-151.0,0.000388,14]
[314433254,1708341041854,-261.017657,0.000388,14]
[314433255,1708341041864,-151.0,0.000388,14]
[314433256,1708341041873,-6702.925057,0.000388,14]
[314433257,1708341041882,-157.143915,0.000388,14]
[314433258,1708341041891,-157.143915,0.000388,14]
[314433259,1708341041900,-6702.925057,0.000388,14]
[314433260,1708341041909,-1047.982941,0.000388,14]
[314433261,1708341041919,-1047.982941,0.000388,14]
[314433262,1708341041929,-151.0,0.000388,14]
[314433263,1708341041938,-151.0,0.000388,14]
[314433264,1708341041947,-151.0,0.000388,14]
[314433265,1708341041956,-151.0,0.000388,14]
[314433266,1708341041965,-151.0,0.000388,14]
[314433267,1708341041974,-151.0,0.000388,14]
[314433268,1708341041984,-218.968109,0.000388,14]
[314433269,1708341041993,-672.834061,0.000388,14]
[314433270,1708341042002,-151.0,0.000388,14]
[314433271,1708341042011,-218.968109,0.000388,14]
[314433272,1708341042021,-672.834061,0.000388,14]
[314433273,1708341042030,-269.157687,0.000388,14]
[314433274,1708341042039,-151.0,0.000388,14]
[314433275,1708341042048,-269.157687,0.000388,14]
[314433276,1708341042057,-151.0,0.000388,14]
[314433277,1708341042066,-643.987739,0.000388,14]
[314433278,1708341042077,-199.525831,0.000388,14]
[314433279,1708341042086,-643.987739,0.000388,14]
[314433280,1708341042095,-151.0,0.000388,14]
[314433281,1708341042105,-199.525831,0.000388,14]
[314433282,1708341042114,-151.0,0.000388,14]
[314433283,1708341042124,-4698.501562,0.000388,14]
[314433284,1708341042133,-202.523053,0.000388,14]
[314433285,1708341042142,-4698.501562,0.000388,14]
[314433286,1708341042152,-202.523053,0.000388,14]
[314433287,1708341042161,-198.395296,0.000388,14]
[314433288,1708341042170,-198.395296,0.000388,14]
[314433289,1708341042180,-151.0,0.000388,14]
[314433290,1708341042189,-151.0,0.000388,14]
[314433291,1708341042199,-2546.090286,0.000388,14]
[314433292,1708341042212,-151.0,0.000388,14]
[314433293,1708341042222,-2546.090286,0.000388,14]
[314433294,1708341042232,-182.288375,0.000388,14]
[314433295,1708341042241,-691.3668,0.000388,14]
[314433296,1708341042251,-691.3668,0.000388,14]
[314433297,1708341042261,-182.288375,0.000388,14]
[314433298,1708341042272,-179.037426,0.000388,14]
[314433299,1708341042281,-179.037426,0.000388,14]
[314433300,1708341042291,-7850.39445,0.000388,14]
[314433301,1708341042301,-42646.31806899,0.000388,2]
[314433302,1708341042310,-264.9,0.00038801,2]
[314433303,1708341042321,-230.12,0.00038808,2]
[314433304,1708341042331,-4490.37128229,0.00038811,2]
[314433305,1708341042340,-5104.82775028,0.00038811,2]
[314433306,1708341042349,-10887.22330869,0.0003885,12]
[314433307,1708341042359,-152.0,0.00038878,7]
[314433308,1708341042368,-392.0511967,0.00038899,2]
[314433309,1708341042377,-283.46875159,0.00038899,2]
[314433310,1708341042386,-1065483.21747276,0.000389,3]
[314433311,1708341042396,-26160.42115816,0.000389,2]
[314433312,1708341042406,-151.0,0.000389,14]
[314433313,1708341042417,-151.0,0.000389,14]
[314433314,1708341042426,-151.0,0.000389,14]
[314433315,1708341042435,-151.0,0.000389,14]
[314433316,1708341042557,-151.0,0.000389,14]
[314433317,1708341042584,-248.819644,0.000389,14]
[314433318,1708341042594,-248.819644,0.000389,14]
[314433319,1708341042603,-151.0,0.000389,14]
[314433320,1708341042612,-152.844115,0.000389,14]
[314433321,1708341042622,-151.0,0.000389,14]
[314433323,1708341042631,-151.0,0.000389,14]
[314433324,1708341042640,-151.0,0.000389,14]
[314433325,1708341042649,-151.0,0.000389,14]
[314433326,1708341042657,-151.0,0.000389,14]
[314433327,1708341042666,-151.0,0.000389,14]
[314433328,1708341042675,-785.550318,0.000389,14]
[314433329,1708341042685,-327.621723,0.000389,14]
[314433330,1708341042694,-864.539963,0.000389,14]
[314433331,1708341042702,-327.621723,0.000389,14]
[314433332,1708341042711,-785.550318,0.000389,14]
[314433334,1708341042720,-864.539963,0.000389,14]
[314433336,1708341042729,-596.131857,0.000389,14]
[314433338,1708341042739,-596.131857,0.000389,14]
[314433339,1708341042747,-153.107936,0.000389,14]
[314433341,1708341042756,-153.107936,0.000389,14]
[314433342,1708341042765,-151.0,0.000389,14]
[314433343,1708341042774,-151.0,0.000389,14]
[314433344,1708341042783,-2245.560263,0.000389,14]
[314433345,1708341042792,-151.0,0.000389,14]
[314433346,1708341042801,-326.061946,0.000389,14]
[314433347,1708341042810,-2245.560263,0.000389,14]
[314433348,1708341042819,-151.0,0.000389,14]
[314433349,1708341042829,-326.061946,0.000389,14]
[314433350,1708341042838,-151.0,0.000389,14]
[314433351,1708341042847,-151.0,0.000389,14]
[314433352,1708341042856,-244.388329,0.000389,14]
[314433353,1708341042864,-244.388329,0.000389,14]
[314433354,1708341042873,-151.0,0.000389,7]
[314433355,1708341042883,-151.0,0.000389,14]
[314433356,1708341042891,-151.0,0.000389,7]
[314433357,1708341042900,-151.0,0.000389,14]
[314433358,1708341042909,-151.0,0.000389,14]
[314433359,1708341042918,-151.0,0.000389,14]
[314433360,1708341042926,-151.0,0.000389,14]
[314433361,1708341042935,-162.598902,0.000389,14]
[314433362,1708341042945,-162.598902,0.000389,14]
[314433363,1708341042954,-1048.267509,0.000389,14]
[314433364,1708341042964,-151.0,0.000389,14]
[314433365,1708341042973,-1048.267509,0.000389,14]
[314433366,1708341042982,-151.0,0.000389,14]
[314433367,1708341042991,-1113.29,0.000389,3]
[314433368,1708341043001,-1113.29,0.000389,3]
[314433369,1708341043010,-1113.29,0.000389,3]
[314433370,1708341043019,-1113.29,0.000389,3]
[314433371,1708341043028,-1113.29,0.000389,3]
[314433372,1708341043038,-1113.29,0.000389,3]
[314433373,1708341043048,-1113.29,0.000389,3]
[314433374,1708341043057,-1113.29,0.000389,3]
[314433375,1708341043066,-1113.29,0.000389,3]
[314433376,1708341043075,-1113.29,0.000389,3]
[314433377,1708341043085,-1113.29,0.000389,3]
[314433378,1708341043093,-1113.29,0.000389,3]
[314433379,1708341043102,-1113.29,0.000389,3]
[314433380,1708341043113,-1113.29,0.000389,3]
[314433381,1708341043122,-1113.29,0.000389,3]
[314433382,1708341043131,-1113.29,0.000389,3]
[314433383,1708341043140,-1113.29,0.000389,3]
[314433384,1708341043149,-1113.29,0.000389,3]
[314433385,1708341043158,-1113.29,0.000389,3]
[314433386,1708341043168,-1113.29,0.000389,3]
[314433387,1708341043177,-285.269881,0.000389,7]
[314433388,1708341043186,-400.683307,0.000389,2]
[314433389,1708341043196,-400.683307,0.000389,2]
[314433390,1708341043206,-418.344515,0.000389,14]
[314433391,1708341043216,-418.344515,0.000389,14]
[314433392,1708341043226,-151.0,0.000389,14]
[314433393,1708341043235,-151.0,0.000389,14]
[314433394,1708341043244,-151.0,0.000389,14]
[314433395,1708341043255,-151.0,0.000389,3]
[314433396,1708341043264,-151.0,0.000389,3]
[314433397,1708341043274,-151.0,0.000389,14]
[314433398,1708341043283,-151.0,0.000389,14]
[314433399,1708341043293,-166.208607,0.000389,14]
[314433400,1708341043302,-166.208607,0.000389,14]
[314433401,1708341043311,-1942.605783,0.000389,14]
[314433402,1708341043321,-1942.605783,0.000389,14]
[314433403,1708341043331,-264.101786,0.000389,14]
[314433404,1708341043340,-233.221752,0.000389,14]
[314433405,1708341043349,-233.221752,0.000389,14]
[314433406,1708341043357,-151.0,0.000389,14]
[314433407,1708341043367,-188.216899,0.000389,14]
[314433408,1708341043376,-188.216899,0.000389,14]
[314433409,1708341043385,-180.708682,0.000389,14]
[314433410,1708341043394,-180.708682,0.000389,14]
[314433411,1708341043404,-155.708372,0.000389,14]
[314433412,1708341043412,-155.708372,0.000389,14]
[314433413,1708341043422,-151.0,0.000389,14]
[314433414,1708341043431,-151.0,0.000389,14]
[314433415,1708341043439,-151.0,0.000389,14]
[314433416,1708341043449,-159.337444,0.000389,14]
[314433417,1708341043458,-159.337444,0.000389,14]
[314433418,1708341043467,-151.0,0.000389,14]
[314433419,1708341043475,-261.017657,0.000389,14]
[314433420,1708341043485,-163.404361,0.000389,14]
[314433421,1708341043495,-261.017657,0.000389,14]
[314433422,1708341043504,-152.81,0.000389,3]
[314433423,1708341043513,-152.81,0.000389,3]
[314433424,1708341043522,-152.81,0.000389,3]
[314433425,1708341043532,-151.0,0.000389,14]
[314433426,1708341043542,-157.143915,0.000389,14]
[314433427,1708341043551,-6702.925057,0.000389,14]
[314433428,1708341043561,-157.143915,0.000389,14]
[314433429,1708341043570,-6702.925057,0.000389,14]
[314433430,1708341043579,-1047.982941,0.000389,14]
[314433431,1708341043589,-1047.982941,0.000389,14]
[314433432,1708341043598,-151.0,0.000389,14]
[314433433,1708341043608,-195.452516,0.000389,14]
[314433434,1708341043618,-151.0,0.000389,14]
[314433435,1708341043628,-151.0,0.000389,14]
[314433437,1708341043637,-151.0,0.000389,14]
[314433439,1708341043647,-151.0,0.000389,14]
[314433440,1708341043657,-218.968109,0.000389,14]
[314433441,1708341043666,-672.834061,0.000389,14]
[314433442,1708341043680,-151.0,0.000389,14]
[314433443,1708341043689,-218.968109,0.000389,14]
[314433444,1708341043699,-672.834061,0.000389,14]
[314433445,1708341043708,-269.157687,0.000389,14]
[314433446,1708341043717,-151.0,0.000389,14]
[314433447,1708341043725,-269.157687,0.000389,14]
[314433448,1708341043734,-168.669488,0.000389,14]
[314433449,1708341043743,-643.987739,0.000389,14]
[314433450,1708341043752,-199.525831,0.000389,14]
[314433451,1708341043761,-643.987739,0.000389,14]
[314433452,1708341043770,-151.0,0.000389,14]
[314433453,1708341043779,-199.525831,0.000389,14]
[314433454,1708341043788,-273.627245,0.000389,14]
[314433455,1708341043797,-4698.501562,0.000389,14]
[314433456,1708341043806,-202.523053,0.000389,14]
[314433457,1708341043816,-4698.501562,0.000389,14]
[314433458,1708341043824,-202.523053,0.000389,14]
[314433459,1708341043834,-198.395296,0.000389,14]
[314433461,1708341043843,-198.395296,0.000389,14]
[314433463,1708341043852,-209.186383,0.000389,14]
[314433465,1708341043861,-151.0,0.000389,14]
[314433467,1708341043870,-151.0,0.000389,14]
[314433469,1708341043879,-2546.090286,0.000389,14]
[314433471,1708341043888,-2546.090286,0.000389,14]
[314433473,1708341043897,-182.288375,0.000389,14]
[314433475,1708341043907,-691.3668,0.000389,14]
[314433477,1708341043916,-691.3668,0.000389,14]
[314433479,1708341043925,-182.288375,0.000389,14]
[314433481,1708341043935,-179.037426,0.000389,14]
[314433483,1708341043944,-179.037426,0.000389,14]
[314433485,1708341043953,-7850.39445,0.000389,14]
[314433487,1708341043962,-500.0,0.00038904,2]
[314433489,1708341043971,-1313.10724312,0.00038921,8]
[314433491,1708341043980,-1468.19177757,0.00038926,8]
[314433493,1708341043989,-257.50547766,0.00038926,8]
[314433495,1708341043998,-233.86929116,0.00038931,8]
[314433497,1708341044007,-818.92592634,0.00038967,2]
[314433499,1708341044016,-392.0511967,0.00038969,2]
[314433501,1708341044025,-283.46875159,0.00038969,2]
[314433503,1708341044035,-10887.22330869,0.00038969,12]
[314433505,1708341044044,-186650.65855346,0.0003897,2]
[314433507,1708341044053,-230.12,0.00038998,2]
[314433509,1708341044062,-152.0,0.00039015,7]
[314433511,1708341044071,-10887.22330869,0.00039088,12]
[314433513,1708341044080,-2160.74225495,0.00039088,9]
[314433515,1708341044089,-1316.2659484,0.00039088,2]
[314433517,1708341044098,-935.99606424,0.00039088,2]
[314433519,1708341044107,-296.57927112,0.00039088,2]
[314433521,1708341044116,-10073.0362739,0.00039088,2]
[314433523,1708341044125,-2022.82255756,0.00039088,2]
[314433525,1708341044134,-150.0,0.000391,2]
[314433527,1708341044144,-152.0,0.00039152,7]
[314433529,1708341044157,-159.78946,0.00039173,2]
[314433531,1708341044166,-250.484529,0.00039173,2]
[314433533,1708341044175,-392.0511967,0.00039177,2]
[314433536,1708341044185,-283.46875159,0.00039177,2]
[314433538,1708341044194,-785.550318,0.00039178,14]
[314433539,1708341044207,-327.621723,0.00039178,14]
[314433541,1708341044217,-864.539963,0.00039178,14]
[314433543,1708341044226,-327.621723,0.00039178,14]
[314433545,1708341044235,-785.550318,0.00039178,14]
[314433548,1708341044245,-864.539963,0.00039178,14]
[314433549,1708341044255,-596.131857,0.00039178,14]
[314433551,1708341044264,-596.131857,0.00039178,14]
[314433554,1708341044273,-153.107936,0.00039178,14]
[314433556,1708341044284,-153.107936,0.00039178,14]
[314433558,1708341044293,-151.0,0.00039178,14]
[314433560,1708341044302,-151.0,0.00039178,14]
[314433561,1708341044311,-2245.560263,0.00039178,14]
[314433563,1708341044321,-151.0,0.00039178,14]
[314433565,1708341044330,-326.061946,0.00039178,14]
[314433567,1708341044340,-2245.560263,0.00039178,14]
[314433569,1708341044350,-151.0,0.00039178,14]
[314433571,1708341044359,-326.061946,0.00039178,14]
[314433573,1708341044368,-151.0,0.00039178,14]
[314433575,1708341044379,-151.0,0.00039178,14]
[314433577,1708341044388,-244.388329,0.00039178,14]
[314433579,1708341044398,-244.388329,0.00039178,14]
[314433581,1708341044407,-151.0,0.00039178,7]
[314433583,1708341044416,-151.0,0.00039178,14]
[314433585,1708341044427,-151.0,0.00039178,7]
[314433588,1708341044436,-151.0,0.00039178,14]
[314433590,1708341044446,-151.0,0.00039178,14]
[314433591,1708341044455,-151.0,0.00039178,14]
[314433594,1708341044464,-151.0,0.00039178,14]
[314433596,1708341044473,-162.598902,0.00039178,14]
[314433597,1708341044482,-162.598902,0.00039178,14]
[314433600,1708341044492,-1048.267509,0.00039178,14]
[314433601,1708341044501,-151.0,0.00039178,14]
[314433604,1708341044510,-1048.267509,0.00039178,14]
[314433605,1708341044519,-151.0,0.00039178,14]
[314433607,1708341044528,-400.683307,0.00039178,2]
[314433609,1708341044537,-400.683307,0.00039178,2]
[314433611,1708341044547,-418.344515,0.00039178,14]
[314433613,1708341044556,-418.344515,0.00039178,14]
[314433615,1708341044565,-151.0,0.00039178,14]
[314433617,1708341044574,-153.520907,0.00039178,14]
[314433619,1708341044584,-151.0,0.00039178,14]
[314433621,1708341044593,-151.0,0.00039178,3]
[314433623,1708341044601,-151.0,0.00039178,3]
[314433625,1708341044611,-151.0,0.00039178,14]
[314433627,1708341044620,-151.0,0.00039178,14]
[314433629,1708341044629,-166.208607,0.00039178,14]
[314433631,1708341044638,-166.208607,0.00039178,14]
[314433633,1708341044648,-1942.605783,0.00039178,14]
[314433635,1708341044657,-1942.605783,0.00039178,14]
[314433637,1708341044666,-233.221752,0.00039178,14]
[314433639,1708341044675,-233.221752,0.00039178,14]
[314433641,1708341044684,-151.0,0.00039178,14]
[314433643,1708341044693,-188.216899,0.00039178,14]
[314433645,1708341044702,-188.216899,0.00039178,14]
[314433647,1708341044711,-180.708682,0.00039178,14]
[314433649,1708341044720,-180.708682,0.00039178,14]
[314433651,1708341044729,-155.708372,0.00039178,14]
[314433653,1708341044738,-155.708372,0.00039178,14]
[314433655,1708341044746,-151.0,0.00039178,14]
[314433657,1708341044755,-151.0,0.00039178,14]
[314433659,1708341044764,-151.0,0.00039178,14]
[314433661,1708341044773,-159.337444,0.00039178,14]
[314433663,1708341044782,-159.337444,0.00039178,14]
[314433665,1708341044791,-151.0,0.00039178,14]
[314433667,1708341044800,-261.017657,0.00039178,14]
[314433669,1708341044810,-261.017657,0.00039178,14]
[314433671,1708341044819,-151.0,0.00039178,14]
[314433673,1708341044830,-157.143915,0.00039178,14]
[314433675,1708341044839,-6702.925057,0.00039178,14]
[314433677,1708341044851,-157.143915,0.00039178,14]
[314433679,1708341044860,-6702.925057,0.00039178,14]
[314433681,1708341044870,-1047.982941,0.00039178,14]
[314433683,1708341044879,-1047.982941,0.00039178,14]
[314433685,1708341044889,-151.0,0.00039178,14]
[314433687,1708341044898,-151.0,0.00039178,14]
[314433689,1708341044907,-151.0,0.00039178,14]
[314433691,1708341044916,-151.0,0.00039178,14]
[314433693,1708341044925,-151.0,0.00039178,14]
[314433695,1708341044934,-218.968109,0.00039178,14]
[314433697,1708341044943,-672.834061,0.00039178,14]
[314433699,1708341044953,-151.0,0.00039178,14]
[314433700,1708341044962,-218.968109,0.00039178,14]
[314433702,1708341044972,-672.834061,0.00039178,14]
[314433704,1708341044980,-269.157687,0.00039178,14]
[314433706,1708341044989,-151.0,0.00039178,14]
[314433708,1708341044998,-269.157687,0.00039178,14]
[314433710,1708341045008,-643.987739,0.00039178,14]
[314433713,1708341045017,-199.525831,0.00039178,14]
[314433715,1708341045026,-643.987739,0.00039178,14]
[314433717,1708341045035,-151.0,0.00039178,14]
[314433719,1708341045045,-199.525831,0.00039178,14]
[314433720,1708341045054,-4698.501562,0.00039178,14]
[314433722,1708341045063,-202.523053,0.00039178,14]
[314433724,1708341045072,-4698.501562,0.00039178,14]
[314433726,1708341045083,-202.523053,0.00039178,14]
[314433728,1708341045092,-198.395296,0.00039178,14]
[314433731,1708341045102,-198.395296,0.00039178,14]
[314433732,1708341045111,-151.0,0.00039178,14]
[314433734,1708341045120,-151.0,0.00039178,14]
[314433736,1708341045129,-2546.090286,0.00039178,14]
[314433738,1708341045138,-2546.090286,0.00039178,14]
[314433741,1708341045147,-182.288375,0.00039178,14]
[314433743,1708341045158,-691.3668,0.00039178,14]
[314433745,1708341045167,-691.3668,0.00039178,14]
[314433747,1708341045177,-182.288375,0.00039178,14]
[314433749,1708341045186,-179.037426,0.00039178,14]
[314433751,1708341045196,-179.037426,0.00039178,14]
[314433753,1708341045209,-7850.39445,0.00039178,14]
[314433755,1708341045218,-1262409.91897963,0.00039178,2]
[314433777,1708341045419,-9000.332137,0.00039178,2]
[314433780,1708341045431,-578.2024239,0.00039178,2]
[314433784,1708341045463,-7850.39445,0.000388,14]
[314433786,1708341045472,-66039.63239537,0.00039178,2]
[314433800,1708341045794,-891.573653,0.00038356,14]
[314433801,1708341045803,-4108.426347,0.00039178,2]
[314433802,1708341046052,-155.22,0.00034286,2]
[314433803,1708341046061,-136.08149745,0.00038356,14]
[314433806,1708341046326,-262.12732119,0.0003778,2]
[314433807,1708341046336,-14.91850255,0.00038356,14]
[314433808,1708341046345,-891.573653,0.00038356,14]
[314433809,1708341046354,-1217.24439817,0.00038552,13]
[314433810,1708341046364,-891.573653,0.000388,14]
[314433811,1708341046373,-151.0,0.000388,14]
[314433812,1708341046382,-891.573653,0.000388,14]
[314433813,1708341046391,-7850.39445,0.000389,14]
[314433814,1708341046400,-891.573653,0.000389,14]
[314433815,1708341046409,-891.573653,0.000389,14]
[314433816,1708341046418,-89.76230473,0.00039178,14]
[314433817,1708341046435,-7760.63214527,0.00039178,14]
[314433818,1708341046444,-891.573653,0.00039178,14]
[314433819,1708341046453,-891.573653,0.00039178,14]
[314433820,1708341046462,-447057.8877171,0.00039178,2]
[314433821,1708341046471,-230.12,0.00039188,2]
[314433822,1708341046480,-4490.37128229,0.00039212,2]
[314433823,1708341046490,-5104.82775028,0.00039212,2]
[314433824,1708341046499,-1000.0,0.0003926,2]
[314433825,1708341046508,-179.42,0.00039273,2]
[314433826,1708341046517,-510.32,0.00039281,2]
[314433827,1708341046526,-282.82531212,0.00039288,10]
[314433828,1708341046536,-152.0,0.00039289,7]
[314433829,1708341046545,-150.0,0.00039366,2]
[314433830,1708341046554,-230.12,0.00039379,2]
[314433831,1708341046563,-152.0,0.00039426,7]
[314433832,1708341046573,-750.0,0.00039452,2]
[314433833,1708341046584,-152.0,0.00039563,7]